[Event "GER-ch Youth-U12 2022"]
[Site "Willingen"]
[Date "2022.06.05"]
[Round "2.7"]
[White "Kulkovets, Roman"]
[Black "Herrmann, Jakob"]
[Result "1-0"]
[ECO "B19"]
[WhiteElo "1099"]
[BlackElo "1737"]
[Annotator "NA RC COMBH"]
[PlyCount "107"]
[EventDate "2022.06.05"]
[EventType "swiss"]
[EventRounds "9"]
[EventCountry "GER"]
[SourceTitle "playchess.com"]
[Source "ChessBase"]
[SourceQuality "1"]
[TimeControl "40/4500+30:900+30"]

1. e4 {[%emt 0:00:00]} c6 {[%emt 0:00:00]} 2. d4 {[%emt 0:00:00]} d5 {[%emt 0:00:00]} 3. Nc3 {[%emt 0:00:00]} dxe4 {[%emt 0:00:00]} 4. Nxe4 {[%emt 0:00:00]} Bf5 {[%emt 0:00:00]} 5. Ng3 {[%emt 0:00:00]} Bg6 {[%emt 0:00:00]} 6. h4 {[%emt 0:00:00]} h6 {[%emt 0:00:00]} 7. Nf3 {[%emt 0:00:00]} Nd7 {[%emt 0:00:00]} 8. h5 {[%emt 0:00:00]} Bh7 {[%emt 0:00:00]} 9. Bd3 {[%emt 0:00:00]} Bxd3 {[%emt 0:00:00]} 10. Qxd3 {[%emt 0:00:00]} Ngf6 {[%emt 0:00:00]} 11. Bf4 {[%emt 0:00:00]} Qa5+ {[%emt 0:00:00]} 12. Bd2 {[%emt 0:00:00]} Qc7 {[%emt 0:00:00]} 13. Bb4 {[%emt 0:00:00]} e6 {[%emt 0:00:00]} 14. Bxf8 {[%emt 0:00:00]} Rxf8 {[%emt 0:00:00]} 15. c4 {[%emt 0:00:00]} O-O-O {[%emt 0:00:00]} 16. O-O-O {[%emt 0:00:00]} Nc5 {[%emt 0:00:39]} 17. Qe3 {[%emt 0:00:00]} Ng4 {[%emt 0:00:09]} 18. Qe2 {[%emt 0:00:00]} Qf4+ {[%emt 0:03:37]} 19. Kb1 {[%emt 0:00:00]} Nd7 {[%emt 0:03:58]} 20. Rh4 {[%emt 0:00:00]} Rde8 {[%emt 0:09:18]} 21. Nh2 {[%emt 0:01:57]} f5 {[%emt 0:00:08]} 22. Nxg4 {[%emt 0:00:05]} fxg4 {[%emt 0:00:06]} 23. Rxg4 {[%emt 0:00:04]} Qxf2 {[%emt 0:00:06]} 24. Rxg7 {[%emt 0:00:05]} Qxe2 {[%emt 0:09:32]} 25. Nxe2 {[%emt 0:00:07]} Rf2 {[%emt 0:01:31]} 26. Nc3 {[%emt 0:00:19]} Nf6 {[%emt 0:00:27]} 27. Rg6 {[%emt 0:00:52]} Nxh5 {[%emt 0:00:30]} 28. Ne4 {[%emt 0:00:06]} Ref8 {[%emt 0:08:23]} 29. Nxf2 {[%emt 0:00:09]} Rxf2 {[%emt 0:00:07]} 30. Rxe6 {[%emt 0:00:12]} Rxg2 {[%emt 0:01:21]} 31. Rxh6 {[%emt 0:00:23]} Ng7 {[%emt 0:05:11]} 32. Rf1 {[%emt 0:00:21]} Ne8 {[%emt 0:01:48]} 33. Rf8 {[%emt 0:00:14]} Re2 {[%emt 0:00:17]} 34. Rhh8 {[%emt 0:00:23]} Kd7 {[%emt 0:00:17]} 35. Rh7+ {[%emt 0:00:12]} Re7 {[%emt 0:00:43]} 36. Rff7 {[%emt 0:00:09]} Rxf7 {[%emt 0:00:06]} 37. Rxf7+ {[%emt 0:00:08]} Kc8 {[%emt 0:00:13]} 38. b3 {[%emt 0:00:06]} Nd6 {[%emt 0:01:32]} 39. Rh7 {[%emt 0:00:18]} Nf5 {[%emt 0:01:12]} 40. d5 {[%emt 0:00:36]} cxd5 {[%emt 0:00:14]} 41. cxd5 {[%emt 0:15:21]} Ne3 {[%emt 0:15:51]} 42. Rh5 {[%emt 0:00:05]} Kc7 {[%emt 0:01:10]} 43. Kb2 {[%emt 0:01:27]} Kd6 {[%emt 0:01:30]} 44. Rh7 {[%emt 0:00:02]} b6 {[%emt 0:01:12]} 45. Rxa7 {[%emt 0:00:11]} Nxd5 {[%emt 0:00:11]} 46. a3 {[%emt 0:00:05]} Kc6 {[%emt 0:01:15]} 47. b4 {[%emt 0:00:23]} b5 {[%emt 0:01:10]} 48. Ra6+ {[%emt 0:00:17]} Nb6 {[%emt 0:00:11]} 49. Kc3 {[%emt 0:00:23]} Kb7 {[%emt 0:01:23]} 50. Rxb6+ {[%emt 0:00:05]} Kxb6 {[%emt 0:00:06]} 51. Kd4 {[%emt 0:00:05]} Kc6 {[%emt 0:01:11]} 52. Ke5 {[%emt 0:00:04]} Kc7 {[%emt 0:00:12]} 53. Kd5 {[%emt 0:00:05]} Kb6 {[%emt 0:00:29]} 54. Kd6 {[%emt 0:00:05]} 1-0

[Event "GER-ch Youth-U12 2022"]
[Site "Willingen"]
[Date "2022.06.05"]
[Round "2.8"]
[White "Martin Fernandez, Rafael"]
[Black "Nemitz, Alfred"]
[Result "1-0"]
[ECO "E92"]
[WhiteElo "1678"]
[BlackElo "1611"]
[Annotator "NA RC COMBH"]
[PlyCount "99"]
[EventDate "2022.06.05"]
[EventType "swiss"]
[EventRounds "9"]
[EventCountry "GER"]
[SourceTitle "playchess.com"]
[Source "ChessBase"]
[SourceQuality "1"]
[TimeControl "40/4500+30:900+30"]

1. d4 {[%emt 0:00:00]} Nf6 {[%emt 0:00:00]} 2. c4 {[%emt 0:00:00]} g6 {[%emt 0:00:00]} 3. Nf3 {[%emt 0:00:00]} Bg7 {[%emt 0:00:00]} 4. Nc3 {[%emt 0:00:00]} O-O {[%emt 0:00:00]} 5. e4 {[%emt 0:00:00]} d6 {[%emt 0:00:00]} 6. Be2 {[%emt 0:00:00]} e5 {[%emt 0:00:00]} 7. Be3 {[%emt 0:00:00]} Nc6 {[%emt 0:00:00]} 8. d5 {[%emt 0:00:00]} Ne7 {[%emt 0:00:00]} 9. Nd2 {[%emt 0:00:00]} Nd7 {[%emt 0:00:00]} 10. O-O {[%emt 0:00:00]} f5 {[%emt 0:00:00]} 11. f3 {[%emt 0:00:00]} f4 {[%emt 0:00:00]} 12. Bf2 {[%emt 0:00:00]} g5 {[%emt 0:00:00]} 13. Rc1 {[%emt 0:00:00]} h5 {[%emt 0:00:00]} 14. b4 {[%emt 0:00:00]} Nf6 {[%emt 0:00:00]} 15. c5 {[%emt 0:00:00]} a6 {[%emt 0:00:00]} 16. cxd6 {[%emt 0:00:00]} cxd6 {[%emt 0:00:00]} 17. Nc4 {[%emt 0:00:00]} Kh8 {[%emt 0:04:40]} 18. Nb6 {[%emt 0:00:00]} Rb8 {[%emt 0:00:08]} 19. Nxc8 {[%emt 0:00:00]} Rxc8 {[%emt 0:00:51]} 20. h3 {[%emt 0:03:47]} Qe8 {[%emt 0:00:46]} 21. b5 {[%emt 0:00:58]} a5 {[%emt 0:02:52]} 22. b6 {[%emt 0:01:13]} Qg6 {[%emt 0:01:44]} 23. Nb5 {[%emt 0:00:57]} g4 {[%emt 0:00:18]} 24. Rxc8 {[%emt 0:05:05]} Nxc8 {[%emt 0:11:50]} 25. Kh1 {[%emt 0:02:39]} g3 {[%emt 0:01:26]} 26. Bg1 {[%emt 0:01:25]} Nh7 {[%emt 0:00:57]} 27. Re1 {[%emt 0:12:48]} Ng5 {[%emt 0:11:40]} 28. Bf1 {[%emt 0:00:00]} Bf6 {[%emt 0:03:26]} 29. Qa4 {[%emt 0:00:00]} Rg8 {[%emt 0:01:34]} 30. Re2 {[%emt 0:00:00]} Qe8 {[%emt 0:03:55]} 31. Qxa5 {[%emt 0:00:00]} Bd8 {[%emt 0:01:43]} 32. Rc2 {[%emt 0:00:00]} Qd7 {[%emt 0:02:17]} 33. Nc7 {[%emt 0:00:00]} Ne7 {[%emt 0:05:46]} 34. Qa7 {[%emt 0:00:00]} Qc8 {[%emt 0:02:03]} 35. Rc4 {[%emt 0:02:22]} Nf7 {[%emt 0:10:29]} 36. Ne8 {[%emt 0:00:00]} Bxb6 {[%emt 0:00:58]} 37. Qxb6 {[%emt 0:00:00]} Qxe8 {[%emt 0:00:12]} 38. Qxb7 {[%emt 0:00:00]} Kg7 {[%emt 0:01:30]} 39. Rc7 {[%emt 0:00:00]} Kf6 {[%emt 0:00:15]} 40. Bb5 {[%emt 0:00:00]} Qf8 {[%emt 0:00:30]} 41. a4 {[%emt 0:13:49]} Ng5 {[%emt 0:18:06]} 42. Bf1 {[%emt 0:00:19]} Rg7 {[%emt 0:06:28]} 43. Qb6 {[%emt 0:01:24]} Qd8 {[%emt 0:01:42]} 44. Rb7 {[%emt 0:00:48]} Rg8 {[%emt 0:06:22]} 45. a5 {[%emt 0:00:40]} Nf7 {[%emt 0:02:32]} 46. a6 {[%emt 0:01:03]} Qc8 {[%emt 0:01:14]} 47. Qc7 {[%emt 0:00:41]} Qxc7 {[%emt 0:01:41]} 48. Rxc7 {[%emt 0:00:07]} Ra8 {[%emt 0:00:18]} 49. a7 {[%emt 0:00:32]} Nd8 {[%emt 0:00:31]} 50. Rd7 {[%emt 0:00:38]} 1-0

[Event "GER-ch Youth-U12 2022"]
[Site "Willingen"]
[Date "2022.06.05"]
[Round "2.9"]
[White "Mandalka, Justus"]
[Black "Buchinger, Alexis"]
[Result "0-1"]
[ECO "C56"]
[WhiteElo "1402"]
[BlackElo "1676"]
[Annotator "NA RC COMBH"]
[PlyCount "62"]
[EventDate "2022.06.05"]
[EventType "swiss"]
[EventRounds "9"]
[EventCountry "GER"]
[SourceTitle "playchess.com"]
[Source "ChessBase"]
[SourceQuality "1"]
[TimeControl "40/4500+30:900+30"]

1. e4 {[%emt 0:00:00]} e5 {[%emt 0:00:00]} 2. Nf3 {[%emt 0:00:00]} Nc6 {[%emt 0:00:00]} 3. d4 {[%emt 0:00:00]} exd4 {[%emt 0:00:00]} 4. Bc4 {[%emt 0:00:00]} Nf6 {[%emt 0:00:00]} 5. O-O {[%emt 0:00:00]} Nxe4 {[%emt 0:00:00]} 6. Re1 {[%emt 0:00:00]} d5 {[%emt 0:00:00]} 7. Bxd5 {[%emt 0:00:00]} Qxd5 {[%emt 0:00:00]} 8. Nc3 {[%emt 0:00:00]} Qh5 {[%emt 0:00:00]} 9. Nxe4 {[%emt 0:00:00]} Be7 {[%emt 0:00:00]} 10. Qd3 {[%emt 0:00:00]} O-O {[%emt 0:02:24]} 11. a3 {[%emt 0:01:19]} Bf5 {[%emt 0:11:32]} 12. Bf4 {[%emt 0:05:00]} Rac8 {[%emt 0:06:37]} 13. Qb3 {[%emt 0:06:24]} Qg4 {[%emt 0:07:06]} 14. g3 {[%emt 0:04:12]} Rfe8 {[%emt 0:17:50]} 15. Neg5 {[%emt 0:09:48]} Nd8 {[%emt 0:08:19]} 16. Nxd4 {[%emt 0:08:18]} Bd7 {[%emt 0:05:32]} 17. Qd5 {[%emt 0:09:48]} Bxg5 {[%emt 0:04:06]} 18. f3 {[%emt 0:02:30]} Qh3 {[%emt 0:03:28]} 19. Bxg5 {[%emt 0:03:43]} Nc6 {[%emt 0:01:43]} 20. b4 {[%emt 0:06:31]} Nxd4 {[%emt 0:01:21]} 21. Qxd4 {[%emt 0:00:12]} Qf5 {[%emt 0:01:12]} 22. Bf4 {[%emt 0:02:45]} Bc6 {[%emt 0:00:27]} 23. Qc3 {[%emt 0:01:03]} h6 {[%emt 0:02:56]} 24. Kf2 {[%emt 0:05:53]} Qh5 {[%emt 0:02:25]} 25. g4 {[%emt 0:00:26]} Qg6 {[%emt 0:00:51]} 26. Qb3 {[%emt 0:01:34]} Qf6 {[%emt 0:00:36]} 27. Kg3 {[%emt 0:00:45]} h5 {[%emt 0:01:32]} 28. Bd2 {[%emt 0:02:06]} Qd6+ {[%emt 0:00:22]} 29. Bf4 {[%emt 0:01:05]} h4+ {[%emt 0:00:04]} 30. Kh3 {[%emt 0:00:19]} Qxf4 {[%emt 0:00:05]} 31. b5 {[%emt 0:00:24]} Bxf3 {[%emt 0:00:40]} 0-1

[Event "GER-ch Youth-U12 2022"]
[Site "Willingen"]
[Date "2022.06.05"]
[Round "2.10"]
[White "Stichter, Constantin Paul"]
[Black "Freude, Paul"]
[Result "1-0"]
[ECO "B23"]
[WhiteElo "1472"]
[BlackElo "1415"]
[Annotator "NA RC COMBH"]
[PlyCount "85"]
[EventDate "2022.06.05"]
[EventType "swiss"]
[EventRounds "9"]
[EventCountry "GER"]
[SourceTitle "playchess.com"]
[Source "ChessBase"]
[SourceQuality "1"]
[TimeControl "40/4500+30:900+30"]

1. e4 {[%emt 0:00:00]} c5 {[%emt 0:00:00]} 2. Nc3 {[%emt 0:00:00]} a6 {[%emt 0:00:00]} 3. f4 {[%emt 0:00:00]} g6 {[%emt 0:00:00]} 4. Nf3 {[%emt 0:00:00]} b5 {[%emt 0:00:00]} 5. g3 {[%emt 0:00:00]} Bb7 {[%emt 0:00:00]} 6. d3 {[%emt 0:00:00]} Bg7 {[%emt 0:00:00]} 7. Bg2 {[%emt 0:00:00]} e6 {[%emt 0:00:00]} 8. Be3 {[%emt 0:00:00]} Qc7 {[%emt 0:00:00]} 9. e5 {[%emt 0:00:00]} Ne7 {[%emt 0:00:00]} 10. Ne4 {[%emt 0:00:00]} Bxe4 {[%emt 0:00:00]} 11. dxe4 {[%emt 0:00:00]} O-O {[%emt 0:00:00]} 12. O-O {[%emt 0:00:00]} Rd8 {[%emt 0:00:00]} 13. Qd6 {[%emt 0:00:00]} Qxd6 {[%emt 0:00:00]} 14. exd6 {[%emt 0:00:00]} Nec6 {[%emt 0:00:58]} 15. c3 {[%emt 0:00:00]} c4 {[%emt 0:02:10]} 16. e5 {[%emt 0:00:00]} a5 {[%emt 0:02:44]} 17. Nd4 {[%emt 0:00:00]} Nxd4 {[%emt 0:01:56]} 18. Bxa8 {[%emt 0:01:14]} Nbc6 {[%emt 0:02:20]} 19. Bxc6 {[%emt 0:00:30]} Nxc6 {[%emt 0:00:09]} 20. Bd4 {[%emt 0:00:45]} Bh8 {[%emt 0:02:43]} 21. b3 {[%emt 0:00:09]} cxb3 {[%emt 0:00:32]} 22. axb3 {[%emt 0:00:17]} Rb8 {[%emt 0:00:18]} 23. Rf2 {[%emt 0:00:22]} f6 {[%emt 0:01:46]} 24. Re2 {[%emt 0:00:17]} Kf7 {[%emt 0:01:02]} 25. Kg2 {[%emt 0:01:16]} b4 {[%emt 0:04:09]} 26. Rb1 {[%emt 0:04:08]} Bg7 {[%emt 0:05:08]} 27. Kf3 {[%emt 0:01:07]} Rb5 {[%emt 0:02:28]} 28. exf6 {[%emt 0:25:25]} Nxd4+ {[%emt 0:00:38]} 29. cxd4 {[%emt 0:00:06]} Bxf6 {[%emt 0:00:16]} 30. Ke4 {[%emt 0:00:23]} Rd5 {[%emt 0:00:19]} 31. Rd2 {[%emt 0:00:07]} Rxd6 {[%emt 0:00:55]} 32. Rc1 {[%emt 0:02:11]} Ra6 {[%emt 0:06:07]} 33. Ra2 {[%emt 0:03:02]} Rd6 {[%emt 0:01:50]} 34. Rc4 {[%emt 0:00:38]} Rd5 {[%emt 0:02:22]} 35. Rd2 {[%emt 0:00:27]} Be7 {[%emt 0:04:05]} 36. Rc7 {[%emt 0:02:56]} Kg7 {[%emt 0:04:58]} 37. Ra7 {[%emt 0:01:16]} Bf6 {[%emt 0:02:51]} 38. Rc7 {[%emt 0:01:45]} Be7 {[%emt 0:00:56]} 39. Rdc2 {[%emt 0:00:02]} Kh6 {[%emt 0:03:34]} 40. Ra7 {[%emt 0:02:31]} Bf6 {[%emt 0:03:24]} 41. Rc4 {[%emt 0:15:21]} d6 {[%emt 0:16:14]} 42. h4 {[%emt 0:03:33]} Rh5 {[%emt 0:05:03]} 43. Rcc7 {[%emt 0:00:41]} 1-0

[Event "GER-ch Youth-U12 2022"]
[Site "Willingen"]
[Date "2022.06.05"]
[Round "2.11"]
[White "Wartenberg, Alexander"]
[Black "Albrecht, Neil"]
[Result "1-0"]
[ECO "C47"]
[WhiteElo "1682"]
[BlackElo "1376"]
[Annotator "NA RC COMBH"]
[PlyCount "111"]
[EventDate "2022.06.05"]
[EventType "swiss"]
[EventRounds "9"]
[EventCountry "GER"]
[SourceTitle "playchess.com"]
[Source "ChessBase"]
[SourceQuality "1"]
[TimeControl "40/4500+30:900+30"]

1. e4 {[%emt 0:00:00]} e5 {[%emt 0:00:00]} 2. Nf3 {[%emt 0:00:00]} Nc6 {[%emt 0:00:00]} 3. d4 {[%emt 0:00:00]} exd4 {[%emt 0:00:00]} 4. Nxd4 {[%emt 0:00:00]} Nf6 {[%emt 0:00:00]} 5. Nc3 {[%emt 0:00:00]} Bb4 {[%emt 0:00:00]} 6. Nxc6 {[%emt 0:00:00]} bxc6 {[%emt 0:00:00]} 7. Bd3 {[%emt 0:00:00]} d5 {[%emt 0:00:00]} 8. exd5 {[%emt 0:00:00]} cxd5 {[%emt 0:00:00]} 9. O-O {[%emt 0:00:00]} O-O {[%emt 0:00:00]} 10. Bg5 {[%emt 0:00:00]} c6 {[%emt 0:00:00]} 11. Qf3 {[%emt 0:00:00]} Rb8 {[%emt 0:00:00]} 12. Ne2 {[%emt 0:00:32]} Bd6 {[%emt 0:00:00]} 13. Nd4 {[%emt 0:07:17]} Bd7 {[%emt 0:00:00]} 14. Rfe1 {[%emt 0:12:23]} Be7 {[%emt 0:00:00]} 15. Nf5 {[%emt 0:05:43]} Bxf5 {[%emt 0:00:00]} 16. Qxf5 {[%emt 0:00:13]} g6 {[%emt 0:00:00]} 17. Qe5 {[%emt 0:10:50]} Re8 {[%emt 0:00:00]} 18. Qf4 {[%emt 0:10:55]} Rb4 {[%emt 0:01:52]} 19. Qe3 {[%emt 0:03:51]} d4 {[%emt 0:09:13]} 20. Qf3 {[%emt 0:01:14]} Nd5 {[%emt 0:01:15]} 21. Qe4 {[%emt 0:04:33]} Rb8 {[%emt 0:01:09]} 22. Bxe7 {[%emt 0:03:57]} Nxe7 {[%emt 0:00:12]} 23. Bc4 {[%emt 0:01:26]} c5 {[%emt 0:01:25]} 24. b3 {[%emt 0:00:38]} Qd7 {[%emt 0:07:10]} 25. Qf3 {[%emt 0:04:26]} Nc6 {[%emt 0:03:11]} 26. Bxf7+ {[%emt 0:01:14]} Qxf7 {[%emt 0:00:18]} 27. Qxc6 {[%emt 0:00:07]} Rbc8 {[%emt 0:02:01]} 28. Rxe8+ {[%emt 0:00:10]} Qxe8 {[%emt 0:00:09]} 29. Qxe8+ {[%emt 0:00:06]} Rxe8 {[%emt 0:00:06]} 30. Kf1 {[%emt 0:00:04]} Kf7 {[%emt 0:00:20]} 31. Re1 {[%emt 0:00:01]} Rc8 {[%emt 0:00:16]} 32. Re4 {[%emt 0:00:39]} Rc7 {[%emt 0:00:46]} 33. Ke2 {[%emt 0:00:18]} Kf6 {[%emt 0:00:11]} 34. Kd3 {[%emt 0:00:20]} Kf5 {[%emt 0:00:09]} 35. f3 {[%emt 0:00:12]} g5 {[%emt 0:00:15]} 36. Kc4 {[%emt 0:00:14]} h5 {[%emt 0:00:10]} 37. g3 {[%emt 0:01:11]} g4 {[%emt 0:01:04]} 38. Rf4+ {[%emt 0:00:10]} Kg5 {[%emt 0:00:06]} 39. fxg4 {[%emt 0:00:07]} hxg4 {[%emt 0:00:06]} 40. Rf8 {[%emt 0:00:19]} Rh7 {[%emt 0:01:04]} 41. Rc8 {[%emt 0:16:12]} Kf5 {[%emt 0:17:22]} 42. Kd3 {[%emt 0:01:02]} Rxh2 {[%emt 0:00:30]} 43. Rxc5+ {[%emt 0:00:11]} Kf6 {[%emt 0:00:17]} 44. Kxd4 {[%emt 0:00:09]} Rf2 {[%emt 0:00:25]} 45. a4 {[%emt 0:01:41]} Rg2 {[%emt 0:00:31]} 46. Rc3 {[%emt 0:00:07]} Rd2+ {[%emt 0:00:13]} 47. Ke4 {[%emt 0:01:05]} Rd6 {[%emt 0:00:13]} 48. Rc4 {[%emt 0:00:34]} Kg5 {[%emt 0:00:14]} 49. Rc5+ {[%emt 0:00:13]} Kg6 {[%emt 0:00:07]} 50. Rd5 {[%emt 0:00:32]} Rc6 {[%emt 0:00:21]} 51. c4 {[%emt 0:00:34]} Rf6 {[%emt 0:00:16]} 52. c5 {[%emt 0:00:28]} Rf3 {[%emt 0:00:08]} 53. Rd3 {[%emt 0:00:08]} Rf1 {[%emt 0:00:13]} 54. c6 {[%emt 0:00:22]} Rc1 {[%emt 0:00:07]} 55. Kd5 {[%emt 0:00:22]} a5 {[%emt 0:00:10]} 56. Kd6 {[%emt 0:00:09]} 1-0

[Event "GER-ch Youth-U12 2022"]
[Site "Willingen"]
[Date "2022.06.05"]
[Round "2.13"]
[White "Seth, Aakrit"]
[Black "Li, Luxuan"]
[Result "1-0"]
[ECO "A47"]
[WhiteElo "1435"]
[BlackElo "1235"]
[Annotator "NA RC COMBH"]
[PlyCount "55"]
[EventDate "2022.06.05"]
[EventType "swiss"]
[EventRounds "9"]
[EventCountry "GER"]
[SourceTitle "playchess.com"]
[Source "ChessBase"]
[SourceQuality "1"]
[TimeControl "40/4500+30:900+30"]

1. d4 {[%emt 0:00:00]} Nf6 {[%emt 0:00:00]} 2. Bf4 {[%emt 0:00:00]} e6 {[%emt 0:00:00]} 3. e3 {[%emt 0:00:00]} Be7 {[%emt 0:00:00]} 4. Nf3 {[%emt 0:00:00]} b6 {[%emt 0:00:00]} 5. Nbd2 {[%emt 0:00:00]} Bb7 {[%emt 0:00:00]} 6. Bd3 {[%emt 0:00:00]} d6 {[%emt 0:00:00]} 7. O-O {[%emt 0:00:00]} Nbd7 {[%emt 0:00:00]} 8. Re1 {[%emt 0:00:00]} O-O {[%emt 0:00:00]} 9. h3 {[%emt 0:00:00]} Re8 {[%emt 0:00:00]} 10. e4 {[%emt 0:00:00]} c5 {[%emt 0:00:00]} 11. c3 {[%emt 0:00:00]} Nf8 {[%emt 0:00:00]} 12. Bb5 {[%emt 0:00:00]} N6d7 {[%emt 0:00:00]} 13. e5 {[%emt 0:00:00]} d5 {[%emt 0:00:00]} 14. Bd3 {[%emt 0:00:00]} c4 {[%emt 0:00:00]} 15. Bc2 {[%emt 0:00:00]} Ng6 {[%emt 0:00:00]} 16. Bh2 {[%emt 0:00:00]} b5 {[%emt 0:01:06]} 17. a3 {[%emt 0:01:44]} Nb6 {[%emt 0:01:55]} 18. Re3 {[%emt 0:07:20]} Rb8 {[%emt 0:04:12]} 19. h4 {[%emt 0:11:21]} Bxh4 {[%emt 0:04:15]} 20. Nxh4 {[%emt 0:00:41]} Nxh4 {[%emt 0:01:50]} 21. Rh3 {[%emt 0:01:26]} Qg5 {[%emt 0:04:47]} 22. Bxh7+ {[%emt 0:07:56]} Kf8 {[%emt 0:03:44]} 23. Bg3 {[%emt 0:02:43]} Nf5 {[%emt 0:02:03]} 24. f4 {[%emt 0:04:55]} Qd8 {[%emt 0:01:42]} 25. Bxf5 {[%emt 0:01:15]} exf5 {[%emt 0:00:31]} 26. Qh5 {[%emt 0:03:13]} g6 {[%emt 0:01:14]} 27. Qh6+ {[%emt 0:00:11]} Ke7 {[%emt 0:00:15]} 28. Bh4+ {[%emt 0:00:18]} 1-0

[Event "GER-ch Youth-U12 2022"]
[Site "Willingen"]
[Date "2022.06.05"]
[Round "2.14"]
[White "Halich, Jan Finnian"]
[Black "Aniol, Nico"]
[Result "0-1"]
[ECO "B06"]
[WhiteElo "877"]
[BlackElo "1494"]
[Annotator "NA RC COMBH"]
[PlyCount "56"]
[EventDate "2022.06.05"]
[EventType "swiss"]
[EventRounds "9"]
[EventCountry "GER"]
[SourceTitle "playchess.com"]
[Source "ChessBase"]
[SourceQuality "1"]
[TimeControl "40/4500+30:900+30"]

1. e4 {[%emt 0:00:00]} d6 {[%emt 0:00:00]} 2. g3 {[%emt 0:00:00]} Nf6 {[%emt 0:00:00]} 3. Nc3 {[%emt 0:00:00]} g6 {[%emt 0:00:00]} 4. Bg2 {[%emt 0:00:00]} Bg7 {[%emt 0:00:00]} 5. Nge2 {[%emt 0:00:18]} c6 {[%emt 0:00:00]} 6. d3 {[%emt 0:00:00]} b5 {[%emt 0:00:00]} 7. a3 {[%emt 0:00:00]} Bb7 {[%emt 0:00:00]} 8. O-O {[%emt 0:00:00]} Nbd7 {[%emt 0:00:00]} 9. f4 {[%emt 0:00:00]} O-O {[%emt 0:00:00]} 10. f5 {[%emt 0:00:00]} e5 {[%emt 0:00:00]} 11. Be3 {[%emt 0:00:00]} a6 {[%emt 0:00:00]} 12. Qd2 {[%emt 0:00:00]} Ng4 {[%emt 0:00:00]} 13. d4 {[%emt 0:00:00]} Nxe3 {[%emt 0:00:00]} 14. Qxe3 {[%emt 0:00:00]} Qb6 {[%emt 0:00:00]} 15. Rad1 {[%emt 0:00:00]} exd4 {[%emt 0:00:48]} 16. Nxd4 {[%emt 0:00:00]} Ne5 {[%emt 0:00:21]} 17. Nce2 {[%emt 0:00:00]} Nc4 {[%emt 0:00:12]} 18. Qb3 {[%emt 0:00:00]} Bh6 {[%emt 0:01:07]} 19. Qc3 {[%emt 0:01:02]} Ne3 {[%emt 0:00:50]} 20. fxg6 {[%emt 0:01:18]} hxg6 {[%emt 0:00:12]} 21. Kh1 {[%emt 0:00:29]} Nxd1 {[%emt 0:01:20]} 22. Rxd1 {[%emt 0:00:16]} Bg7 {[%emt 0:00:13]} 23. Qb4 {[%emt 0:01:01]} c5 {[%emt 0:00:11]} 24. Qc3 {[%emt 0:00:12]} cxd4 {[%emt 0:00:08]} 25. Nxd4 {[%emt 0:00:11]} Rac8 {[%emt 0:00:09]} 26. Qd3 {[%emt 0:00:28]} Qxd4 {[%emt 0:00:07]} 27. Qxd4 {[%emt 0:00:18]} Bxd4 {[%emt 0:00:03]} 28. Rxd4 {[%emt 0:00:08]} Rxc2 {[%emt 0:00:08]} 0-1

[Event "GER-ch Youth-U12 2022"]
[Site "Willingen"]
[Date "2022.06.05"]
[Round "2.16"]
[White "Aweh, Mads"]
[Black "Goldkuhle, Collin"]
[Result "1-0"]
[ECO "B30"]
[WhiteElo "1438"]
[BlackElo "1323"]
[Annotator "NA RC COMBH"]
[PlyCount "77"]
[EventDate "2022.06.05"]
[EventType "swiss"]
[EventRounds "9"]
[EventCountry "GER"]
[SourceTitle "playchess.com"]
[Source "ChessBase"]
[SourceQuality "1"]
[TimeControl "40/4500+30:900+30"]

1. e4 {[%emt 0:00:00]} c5 {[%emt 0:00:00]} 2. Nf3 {[%emt 0:00:00]} Nc6 {[%emt 0:00:00]} 3. Bb5 {[%emt 0:00:00]} Nd4 {[%emt 0:00:00]} 4. Nxd4 {[%emt 0:00:00]} cxd4 {[%emt 0:00:00]} 5. O-O {[%emt 0:00:00]} g6 {[%emt 0:00:00]} 6. d3 {[%emt 0:00:00]} Bg7 {[%emt 0:00:00]} 7. Nd2 {[%emt 0:00:00]} Nf6 {[%emt 0:00:00]} 8. Nf3 {[%emt 0:00:00]} a6 {[%emt 0:00:00]} 9. Bc4 {[%emt 0:00:00]} d5 {[%emt 0:00:00]} 10. exd5 {[%emt 0:00:00]} Nxd5 {[%emt 0:00:00]} 11. Re1 {[%emt 0:00:00]} Nb6 {[%emt 0:00:00]} 12. Bf4 {[%emt 0:00:00]} Nxc4 {[%emt 0:00:00]} 13. dxc4 {[%emt 0:00:00]} O-O {[%emt 0:00:00]} 14. Be5 {[%emt 0:00:02]} Bxe5 {[%emt 0:00:00]} 15. Rxe5 {[%emt 0:00:19]} Be6 {[%emt 0:00:45]} 16. b3 {[%emt 0:00:54]} Qc7 {[%emt 0:03:32]} 17. Re4 {[%emt 0:03:07]} Rfd8 {[%emt 0:04:46]} 18. Rxd4 {[%emt 0:02:26]} Rxd4 {[%emt 0:00:17]} 19. Qxd4 {[%emt 0:00:55]} Rd8 {[%emt 0:00:10]} 20. Qe3 {[%emt 0:00:11]} Bg4 {[%emt 0:02:46]} 21. h3 {[%emt 0:05:11]} Bxf3 {[%emt 0:03:25]} 22. gxf3 {[%emt 0:00:47]} Rd6 {[%emt 0:03:43]} 23. Kg2 {[%emt 0:03:16]} Re6 {[%emt 0:04:39]} 24. Qc3 {[%emt 0:01:40]} Qd6 {[%emt 0:09:56]} 25. a4 {[%emt 0:03:46]} Qf4 {[%emt 0:06:08]} 26. Rd1 {[%emt 0:01:44]} f6 {[%emt 0:02:50]} 27. Rd4 {[%emt 0:02:39]} Qf5 {[%emt 0:05:19]} 28. Qd3 {[%emt 0:02:47]} Qh5 {[%emt 0:05:42]} 29. Rd8+ {[%emt 0:03:41]} Kg7 {[%emt 0:02:21]} 30. Qd5 {[%emt 0:01:26]} Re5 {[%emt 0:01:51]} 31. Qg8+ {[%emt 0:02:06]} Kh6 {[%emt 0:00:57]} 32. Qf8+ {[%emt 0:00:07]} Kg5 {[%emt 0:01:28]} 33. Rd4 {[%emt 0:01:17]} Ra5 {[%emt 0:09:17]} 34. Qxe7 {[%emt 0:01:40]} Kh6 {[%emt 0:03:26]} 35. Qf8+ {[%emt 0:01:10]} Kg5 {[%emt 0:00:29]} 36. Rg4+ {[%emt 0:00:09]} Kf5 {[%emt 0:00:47]} 37. Qc8+ {[%emt 0:00:12]} Ke5 {[%emt 0:00:31]} 38. Re4+ {[%emt 0:00:00]} Kd6 {[%emt 0:00:27]} 39. Re6# {[%emt 0:00:03]} 1-0